Cogmind - Beta 13 @@@ ROGUE MODE // 2024.07.02 @ 21:56:31 Player: mandos Result: Self-destructed Performance ------------- Evolutions (1) 500 Regions Visited (2) 400 Robots Destroyed (13) 65 Value Destroyed (398) 398 Prototype IDs (0) 0 Alien Tech Used (0) 0 Bonus (0) 0 TOTAL SCORE: 1363 Bonus ------- None Cogmind --------- Core Integrity 400/400 Matter 300/300 Energy 160/160 System Corruption 0% Temperature Cool (0) Movement Treading (320) Ox2 Location -9/Materials Parts ------- > --- POWER (1) -------- Light Nuclear Core > --- PROPULSION (3) --- Light Treads > --- UTILITY (3) ------ High-capacity Storage Unit Sensor Array > --- WEAPON (2) ------- Small Laser Particle Gun > --- INVENTORY (20) --- Ion Engine Light Ion Engine Light Ion Engine Structural Scanner Small Laser Datajack Peak State ------------ > --- POWER ------------ Light Nuclear Core > --- PROPULSION ------- Light Treads Light Treads > --- UTILITY ---------- High-capacity Storage Unit Sensor Array > --- WEAPON ----------- Small Laser Particle Gun > --- INVENTORY -------- Light Ion Engine Light Ion Engine Small Laser [Rating: 10] Favorites ----------- Power Light Nuclear Core Engine Light Ion Engine Power Core Light Nuclear Core Propulsion Light Treads Treads Light Treads Utility High-capacity Storage Unit Device Sensor Array Storage High-capacity Storage Unit Weapon Small Laser Energy Gun Small Laser Build | -11 -10 -9 ------- Run | Yrd Mat Mat Slots Evolved 2 | . . 2 Power . | . . . Propulsion 1 | . . 1 Utility 1 | . . 1 Weapon . | . . . Parts Attached 11 | 6 5 . Power 3 | 1 2 . Engine 2 | 1 1 . Core 1 | . 1 . Reactor . | . . . Propulsion 2 | 2 . . Treads 2 | 2 . . Leg . | . . . Wheel . | . . . Hover . | . . . Flight . | . . . Utility 3 | 1 2 . Device 1 | . 1 . Storage 2 | 1 1 . Processor . | . . . Hackware . | . . . Protection . | . . . Artifact . | . . . Weapon 3 | 2 1 . Energy Gun 3 | 2 1 . Energy Cannon . | . . . Ballistic Gun . | . . . Ballistic Cannon . | . . . Launcher . | . . . Special Weapon . | . . . Impact Weapon . | . . . Slashing Weapon . | . . . Piercing Weapon . | . . . Special Melee Weapon . | . . . Unidentified Prototypes . | . . . Parts Lost 2 | . 2 . Power 1 | . 1 . Propulsion 1 | . 1 . Utility . | . . . Weapon . | . . . Highest Loss Streak 1 | . 1 . To Critical Strikes . | . . . Average Slot Usage (%) 90 | . 90 . Engine 3 | . 3 . Core 8 | . 8 . Treads 25 | . 25 . Device 8 | . 8 . Storage 14 | . 14 . Energy Gun 28 | . 28 . Naked Turns . | . . . Heaviest Build 50 | 10 50 . Greatest Support 40 | 40 40 . Greatest Overweight (x) 2 | . 2 . Average Overweight (x) . | . . . Largest Inventory Capacity 20 | 8 20 . Average Capacity 16 | 6 17 . Most Carried 6 | 1 6 . Average Carried 3 | . 3 . Final Capacity 20 | 8 20 20 Final Carried 6 | 1 6 6 Class Distribution -------------------- 100% | Mutant Dominant Class ---------------- Mutant | -10/Materials Mutant | -9/Materials Resources | -11 -10 -9 ----------- Run | Yrd Mat Mat Matter Collected 310 | 184 126 . Remotely . | . . . Salvage Created 501 | . 501 . Parts 30 | . 30 . Haulers Intercepted . | . . . Recyclers Shooed . | . . . Parts Field Recycled . | . . . Retrieved Matter . | . . . Parts Self-Destructed . | . . . Prevented . | . . . Kills | -11 -10 -9 ------- Run | Yrd Mat Mat Combat Hostiles Destroyed 11 | . 11 . Guns 11 | . 11 . Classes Destroyed 3 | . 3 . Worker 2 | . 2 . Swarmer 1 | . 1 . Grunt 10 | . 10 . Best Kill Streak 4 | . 4 . Combat Bots Only 4 | . 4 . Max Kills in Single Turn 1 | . 1 . Gunslinging . | . . . Exploded . | . . . Melee . | . . . Uniques/NPCs Destroyed . | . . . Combat | -11 -10 -9 -------- Run | Yrd Mat Mat Hostile Shots Fired 89 | . 89 . Missed 26 | . 26 . Damage Taken 730 | . 730 . Core 164 | . 164 . Absorbed by Shields . | . . . Core Remaining (%) 67 | 100 34 . Volleys Fired 40 | . 40 . Largest 2 | . 2 . Hottest 105 | . 105 . Shots Fired 80 | . 80 . Gun 80 | . 80 . Cannon . | . . . Launcher . | . . . Special . | . . . Kinetic . | . . . Thermal 80 | . 80 . Explosive . | . . . Electromagnetic . | . . . Robot Hit Streak 16 | . 16 . Robot Miss Streak 4 | . 4 . Penetration Max . | . . . Secondary Targets 3 | . 3 . Max Gunslinging Chain 1 | . 1 . Shots Hit Robots 56 | . 56 . Core Hits 24 | . 24 . Critical Kills . | . . . Critical Parts Destroyed . | . . . Critical Strikes . | . . . Melee Attacks . | . . . Impact . | . . . Slashing . | . . . Piercing . | . . . Sneak Attacks . | . . . Combat Hostiles . | . . . Follow-up Attacks . | . . . Damage Inflicted 703 | . 703 . Guns 703 | . 703 . Cannons . | . . . Explosions . | . . . Melee . | . . . Ramming . | . . . Kinetic . | . . . Thermal 703 | . 703 . Explosive . | . . . Electromagnetic . | . . . Impact . | . . . Slashing . | . . . Piercing . | . . . Highest Corruption . | . . . Average Corruption . | . . . Corruption Purged . | . . . Corruption Blocked . | . . . Overload Shots . | . . . Overflow Damage . | . . . Projectiles . | . . . Explosions . | . . . Melee . | . . . Knockbacks . | . . . Impact . | . . . Kinetic . | . . . Secondary . | . . . Self-Inflicted Damage . | . . . Shots . | . . . Rammed . | . . . Targets Rammed . | . . . Kicked . | . . . Crushed . | . . . Highest Temperature 348 | . 348 . Average Temperature 130 | . 130 . Received Heat Transfer 387 | . 387 . Effects 1 | . 1 . Energy Bleed 1 | . 1 . Siege Activations . | . . . Robots Corrupted . | . . . Combat Hostiles . | . . . Parts Fried . | . . . Impact Corruptions . | . . . Robots Melted . | . . . Combat Hostiles . | . . . Parts Melted 1 | . 1 . Heat Transferred 1604 | . 1604 . Parts Sabotaged . | . . . Parts Stolen . | . . . Parts Stripped . | . . . Power Chain Reactions . | . . . Alert | -11 -10 -9 ------- Run | Yrd Mat Mat Peak Influence 230 | . 230 . Initial 48 | . . 48 Average 94 | . 107 . Maximum Alert Level 1 | . 1 . Low Security (%) 84 | 100 82 . Level 1 15 | . 17 . Level 2 . | . . . Level 3 . | . . . Level 4 . | . . . Level 5 . | . . . High Security . | . . . Max Security . | . . . Squads Dispatched 2 | . 2 . Investigation 2 | . 2 . Extermination . | . . . Reinforcement . | . . . Assault . | . . . Garrison . | . . . Intercept . | . . . Searches Triggered . | . . . Construction Impeded . | . . . Haulers Reinforced . | . . . Active Scanning Responses . | . . . Cargo Convoy Interrupts . | . . . Stealth | -11 -10 -9 --------- Run | Yrd Mat Mat Distress Signals . | . . . Communications Jammed . | . . . Distress Signals . | . . . Times Spotted 17 | . 17 . Peak Tracking Total 5 | . 5 . Tactical Retreats 1 | . 1 . Traps | -11 -10 -9 ------- Run | Yrd Mat Mat Traps Triggered 1 | . 1 . Indirectly . | . . . Trap Hack Attempts . | . . . Triggered . | . . . Disarmed . | . . . Reprogrammed . | . . . Reused . | . . . Traps Extracted . | . . . Installed . | . . . Triggered . | . . . Machines | -11 -10 -9 ---------- Run | Yrd Mat Mat Machines Disabled 2 | . 2 . Max in Single Turn 1 | . 1 . Machines Repaired . | . . . Machines Dismantled . | . . . Machines Sabotaged . | . . . Overloaded Fab Kills . | . . . Hacking | -11 -10 -9 --------- Run | Yrd Mat Mat Machines Accessed 2 | . 2 . Terminals 2 | . 2 . Fabricators . | . . . Repair Stations . | . . . Recycling Units . | . . . Scanalyzers . | . . . Garrison Access . | . . . Total Hacks 5 | . 5 . Successful 1 | . 1 . Failed 4 | . 4 . Catastrophic 1 | . 1 . Database Lockouts . | . . . Manual 3 | . 3 . Terminals 5 | . 5 . Fabricators . | . . . Repair Stations . | . . . Recycling Units . | . . . Scanalyzers . | . . . Garrison Access . | . . . Terminal Hacks 1 | . 1 . Zone Layout 1 | . 1 . Fabricator Hacks . | . . . Repair Station Hacks . | . . . Recycling Unit Hacks . | . . . Scanalyzer . | . . . Garrison Access Hacks . | . . . Unauthorized Hacks . | . . . Terminals . | . . . Fabricators . | . . . Repair Stations . | . . . Recycling Units . | . . . Scanalyzers . | . . . Garrison Access . | . . . Data Cores Recovered . | . . . Used . | . . . Hacking Detections 1 | . 1 . Full Trace Events 1 | . 1 . Feedback Events . | . . . Feedback Blocked . | . . . Robot Schematics Acquired . | . . . Robots Built . | . . . Authchips . | . . . Time . | . . . Total Robot Build Rating . | . . . Part Schematics Acquired . | . . . Parts Built . | . . . Authchips . | . . . Time . | . . . Total Part Build Rating . | . . . Parts Repaired . | . . . Time . | . . . Parts Recycled . | . . . Recycled Matter . | . . . Retrieved Matter . | . . . Retrieved Components . | . . . Parts Scanalyzed . | . . . Part Schematics Acquired . | . . . Parts Damaged . | . . . Bothacking | -11 -10 -9 ------------ Run | Yrd Mat Mat Used RIF Installer . | . . . Robots Hacked . | . . . Non-combat . | . . . Combat . | . . . Robot Hacks Applied . | . . . Relay Couplers Released . | . . . Fabnet Peak Effective % . | . . . Robots Rewired . | . . . Allies Hacked . | . . . Hacks Repelled . | . . . Allies | -11 -10 -9 -------- Run | Yrd Mat Mat Total Allies . | . . . Largest Group . | . . . Highest-Rated Group . | . . . Highest-Rated Ally . | . . . Total Orders . | . . . Ally Attacks . | . . . Total Damage . | . . . Kills . | . . . Allies Corrupted . | . . . Allies Melted . | . . . Intel | -11 -10 -9 ------- Run | Yrd Mat Mat Robot Analysis Total . | . . . Derelict Logs Recovered . | . . . Drone Launches . | . . . Drone Recoveries . | . . . Exploration | -11 -10 -9 ------------- Run | Yrd Mat Mat Turns Passed 612 | 72 540 . Spaces Moved 216 | 39 177 . Core 6 | 6 . . Treads 210 | 33 177 . Legs . | . . . Wheels . | . . . Hover . | . . . Flight . | . . . Fastest Speed 50 | 50 160 . Average Speed 213 | 143 228 . Slowest Speed 320 | 160 320 . Overloaded Moves . | . . . Propulsion Burnouts . | . . . Robots Hopped . | . . . Cave-ins Triggered . | . . . Exploration Rate (%) 19 | 4 35 . Regions Visited 2 Branch Regions . Pre-discovered Areas . | . . . Known Exits Taken . | . . . Unknown Exits Taken 2 | 1 1 . Scrap Searched . | . . . Spaces Dug . | . . . Terrain Destroyed . | . . . Melee . | . . . Projectile . | . . . AOE . | . . . Terrain Rammed . | . . . Walls Destroyed . | . . . Machines Disabled . | . . . Actions | -11 -10 -9 --------- Run | Yrd Mat Mat Total 284 | 52 232 . Wait 14 | 7 7 . Move 214 | 38 176 . Hop . | . . . Pick Up 4 | 1 3 . Fast Attach 9 | 6 3 . Attach . | . . . Detach . | . . . Swap 2 | . 2 . Drop 1 | . 1 . Fire 40 | . 40 . Melee . | . . . Ram . | . . . Kick . | . . . Crush . | . . . Escape Stasis . | . . . Rewire . | . . . Trap . | . . . Miscellaneous . | . . . Route ------- -11/Scrapyard -10/Materials -9/Materials History --------- Turn | Location | Event 9 | -11/Scrapyard | Discovered new exit (range 14) 73 | -11/Scrapyard | Entered Materials 303 | -10/Materials | Build established: Mutant 426 | -10/Materials | Discovered new exit (range 10) 532 | -10/Materials | Core integrity fell below 50% 613 | -10/Materials | Entered another Materials area 613 | -9/Materials | Evolved 2 slots: Propulsion x1, Utility x1 613 | -9/Materials | Self-destructed Last Messages --------------- 00450_ Acquired Datajack. 00483_ Connecting with Terminal... 00483_ ALERT: Suspicious activity at Terminal M001. Dispatching Investigation squad. 00484_ K-01 Serf cleans the Terminal. 00519_ Atomic Centrifuge disabled. 00521_ Lgt. Treads destroyed. 00525_ G-34 Mercenary destroyed. 00525_ Switching to secondary target: G-34 Mercenary. 00531_ S-10 Pest destroyed. 00534_ G-34 Mercenary destroyed. 00559_ K-01 Serf cleans the Terminal. 00576_ K-01 Serf collects debris. 00579_ Destroyed Com. Wheel. 00585_ K-01 Serf destroyed. 00588_ K-01 Serf collects debris. 00591_ K-01 Serf destroyed. PARAMETERS=PROPULSION+1,UTILITY+1 LOCATION=UNKNOWN GOAL=ESCAPE Map ----- +----------------------------------------------------+ | ?????????????????????????????????????????????? | | ?????????????????????????????????????????????? | | ?????????????????????????????????????????????? | | ?????????????????????????????????????????????? | | ?????????????????????????????????????????????? | | ?????????????????????????????????????????????? | | ?????????????????????????????????????????????? | | ?????????????????????????????????????????????? | | ?????????????????????????????????????????????? | | ?????????????????????????????????????????????? | | ?????????????????????????????????????????????? | | ?????????????????????????????????????????????? | | ?????????????????????????????????????????????? | | ?????????????????????????????????????????????? | | ?????????????????????????????????????????????? | | ?????????????????????????????????????????????? | | ?????????????????????????????????????????????? | | ?????????????????????????????????????????????? | | ?????????????????????????????????????????????? | | ?????????????????????????????????????????????? | | ?????????????????????????????????????????????? | | ???????????????????# ????????????????????????? | | ???????????????????# ???????????????????????? | | ???????????????????# #####?????????????????? | | ???????????????????# #?????????????????? | | ???????????????????# @ #?????????????????? | | ???????????????????+ #?????????????????? | | ???????????????????##+######?????????????????? | | ?????????????????????????????????????????????? | | ?????????????????????????????????????????????? | | ?????????????????????????????????????????????? | | ?????????????????????????????????????????????? | | ?????????????????????????????????????????????? | | ?????????????????????????????????????????????? | | ?????????????????????????????????????????????? | | ?????????????????????????????????????????????? | | ?????????????????????????????????????????????? | | ?????????????????????????????????????????????? | | | | | | | | | | | | | | | | | | | | | | | | | +----------------------------------------------------+ Best States ------------- Heat Dissipation 25 Energy Generation 14 Energy Capacity 250 Matter Stores 300 Matter Capacity 300 Sight Range 16 Robot Scan Range 14 Terrain Scan Density 10 Evasion (%) 40 Recoil Reduction 2 Item Schematics ----------------- None Robot Schematics ------------------ None Fabricated ------------ Nothing Alien Tech Used ----------------- None Achievements -------------- None Challenges ------------ None Game ------ Seed SmartbombXenonArmor Manual? 0 Play Time 00:06:13 Cumulative 5.8 hours Start 2024.07.02 @ 21:50:37 End 2024.07.02 @ 21:56:31 Sessions 1 Manual Loads 0 Difficulty Rogue Special Mode None Game No. 11 Rogue 11 Adventurer 0 Explorer 0 Win Type - Total 0 Types 0/0/0/0/0/0/0/0/0 Lore% 8 Gallery% 11 Achievement% 13 Wizard Run 0 Options --------- Layout 0 ASCII 0 Keyboard 0 Movement Mouse Keybinds 0 Fullscreen 1 Font 24/Smallcaps Map View 76x50 Zoom Use 0% Tactical HUD 1 Map Filters NONE Filters NONE Steam 1 RUN: 5c608e06-a8d7-482d-b2c6-4d6bc60f0d08